Workbook

Sheet 企业 (hidden)
B1: 道路运输企业统计表
A2: 道路运输企业 | B2: 类别 | C2: 客运企业 | E2: 危运企业 | F2: 普货运输 | H2: 维修业户 | L2: 驾培企业
C3: 客运班车企业 | D3: 旅游包车企业 | F3: 普货企业 | G3: 普货个体 | H3: 一类机动车维修 | I3: 二类机动车维修 | J3: 三类机动车维修 | K3: 摩托车维修企业
B4: 数量（家） | C4: 14 | D4: 8 | E4: 77 | F4: 1338 | G4: 9052 | H4: 28 | I4: 178 | J4: 1344 | K4: 617 | L4: 57
B5: 合计 | C5: =SUM(C4:D4) -> 22 | E5: =SUM(E4) -> 77 | F5: =SUM(F4:G4) -> 10390 | H5: =SUM(H4:K4) -> 2167 | L5: =SUM(L4) -> 57
A6: 客运站亭 | B6: 类别 | C6: 一级站 | D6: 二级站 | E6: 三级站 | F6: 四级站 | G6: 五级站 | H6: 简易站 | I6: 招呼站 | J6: 四合一站 | K6: 未定级站 | L6: 农村客运候车亭
B7: 数量（个） | C7: 5 | D7: 3 | E7: 4 | F7: 3 | G7: 4 | H7: 12 | I7: 22 | J7: 5 | K7: 10 | L7: 644
B8: 合计 | C8: =SUM(C7:K7) -> 68 | L8: =SUM(L7) -> 644

Sheet 客运站 (hidden)
A1: 客运站统计表 | J1: 客运站亭统计表
A2: 站场级别 | B2: 数量 | J2: 类别 | K2: 一级站 | L2: 二级站 | M2: 三级站 | N2: 四级站 | O2: 五级站 | P2: 简易站 | Q2: 招呼站 | R2: 四合一站 | S2: 未定级站 | T2: 农村客运候车亭
A3: 一级站 | B3: 5 | J3: 数量（个） | K3: 5 | L3: 3 | M3: 4 | N3: 3 | O3: 4 | P3: 12 | Q3: 22 | R3: 5 | S3: 10 | T3: 644
A4: 二级站 | B4: 3 | J4: 合计 | K4: =SUM(K3:S3) -> 68 | T4: =SUM(T3) -> 644
A5: 三级站 | B5: 4
A6: 四级站 | B6: 3
A7: 五级站 | B7: 4
A8: 简易站 | B8: 12
A9: 招呼站 | B9: 22
A10: 四合一站 | B10: 5
A11: 未定级站 | B11: 10
A12: 合计 | B12: =SUM(B3:B11) -> 68
A15: 农村客运候车亭统计表
A16: 类别 | B16: 数量
A17: 农村客运候车亭 | B17: 644

Sheet 车辆 (hidden)
A1: 营运车辆统计表
A2: 类别 | B2: 班车 | C2: 包车 | D2: 普货 | E2: 危货 | F2: 教练车
B3: 车辆 | C3: 车辆 | D3: 车辆 | E3: 车辆
A4: 数量 | B4: 865 | C4: 313 | D4: 15164 | E4: 1435 | F4: 2699
A5: 合计 | B5: =SUM(B4:C4) -> 1178 | D5: =SUM(D4:E4) -> 16599 | F5: =SUM(F4) -> 2699

Sheet 从业人员 (hidden)
A1: 道路运输从业人员统计表
A2: 类别 | B2: 经营性道路货物运输驾驶员 | C2: 经营性道路旅客运输驾驶员 | D2: 道路危险货物运输押运人员 | E2: 道路危险货物运输装卸管理人员 | F2: 道路危险货物运输驾驶员
A3: 数量 | B3: 25597 | C3: 8168 | D3: 2992 | E3: 205 | F3: 2294

Sheet 道路运输行业
A1: 道路运输情况
A2: 类别 | D2: 数量 | E2: 合计
A3: 道路运输企业 | B3: 客运企业 | C3: 班车企业 | D3: 14 | E3: =SUM(D3:D4) -> 22
C4: 旅游包车企业 | D4: 8
B5: 危运企业 | D5: 77 | E5: =SUM(D5) -> 77
B6: 普货运输 | C6: 普货企业 | D6: 1297 | E6: =SUM(D6:D7) -> 6996
C7: 普货个体 | D7: 5699
B8: 维修业户 | C8: 一类机动车维修 | D8: 35 | E8: =SUM(D8:D11) -> 2425
C9: 二类机动车维修 | D9: 172
C10: 三类机动车维修 | D10: 1649
C11: 摩托车维修企业 | D11: 569
B12: 驾培企业 | D12: 55 | E12: =SUM(D12) -> 55
A13: 营运车辆 | B13: 班车 | D13: 784 | E13: =SUM(D13:D14) -> 1101
B14: 包车 | D14: 317
B15: 普货运输 | D15: 14384 | E15: =SUM(D15:D16) -> 15894
B16: 危货 | D16: 1510
B17: 教练车 | D17: 2820 | E17: =SUM(D17) -> 2820
A18: 道路运输从业人员 | B18: 经营性道路货物运输驾驶员 | D18: 26730
B19: 经营性道路旅客运输驾驶员 | D19: 6936
B20: 道路危险货物运输押运人员 | D20: 2984
B21: 道路危险货物运输装卸管理人员 | D21: 205
B22: 道路危险货物运输驾驶员 | D22: 2168
A23: 客运站亭 | B23: 一级站 | D23: 5
B24: 二级站 | D24: 3
B25: 三级站 | D25: 4
B26: 农村客运候车亭 | D26: 645
A30: 公共交通情况
A31: 类别 | D31: 数量 | E31: 合计
A32: 公交行业 | B32: 公交企业 | D32: 7
B33: 公交车辆 | D33: 1756
B34: 公交线路 | D34: 303
B35: 公交站场 | D35: 48
A36: 出租车行业 | B36: 企业 | C36: 巡游车 | D36: 15 | E36: =SUM(D36:D37) -> 23
C37: 网约车 | D37: 8
B38: 车辆 | C38: 巡游车 | D38: 297 | E38: =D38+D39 -> 1803
C39: 网约车 | D39: 1506
B40: 驾驶员 | C40: 出租汽车驾驶员从业资格证 | D40: 3220 | E40: =D40+D41 -> 20265
C41: 网络预约出租汽车驾驶员证 | D41: 17045
A42: 共享单车行业 | B42: 平台企业 | D42: 2
B43: 车辆数 | D43: 0.9万
